[Event "Late-Titled-Tuesday-Blitz-June-25-2024"]
[Site "Chess.com"]
[Date "2024.06.25"]
[Round "4"]
[White "Hirna2005"]
[Black "Road2GM3000"]
[Result "0-1"]
[WhiteElo "2352"]
[BlackElo "2509"]
[TimeControl "180+1"]
[EndTime "14:37:35 PDT"]
[Termination "Road2GM3000 won by resignation"]

1. e4 {[%clk 0:03:00.9]} 1... c5 {[%clk 0:02:48]} 2. Nf3 {[%clk 0:02:59.3]} 2...
d6 {[%clk 0:02:48]} 3. c3 {[%clk 0:02:58.6]} 3... Nf6 {[%clk 0:02:47.9]} 4. h3
{[%clk 0:02:57.4]} 4... Nc6 {[%clk 0:02:47.8]} 5. Bd3 {[%clk 0:02:57.4]} 5... g6
{[%clk 0:02:42.1]} 6. Bc2 {[%clk 0:02:56.9]} 6... Bg7 {[%clk 0:02:42.7]} 7. O-O
{[%clk 0:02:55.2]} 7... e5 {[%clk 0:02:42.9]} 8. d4 {[%clk 0:02:54.3]} 8... exd4
{[%clk 0:02:42.8]} 9. cxd4 {[%clk 0:02:54.6]} 9... cxd4 {[%clk 0:02:43.2]} 10.
Nxd4 {[%clk 0:02:54.3]} 10... O-O {[%clk 0:02:43.8]} 11. Be3 {[%clk 0:02:51.2]}
11... Re8 {[%clk 0:02:42.7]} 12. Nc3 {[%clk 0:02:51.1]} 12... Bd7 {[%clk
0:02:41.1]} 13. Ndb5 {[%clk 0:02:46.4]} 13... Nb4 {[%clk 0:02:32.9]} 14. Nxd6
{[%clk 0:02:31.3]} 14... Nxc2 {[%clk 0:02:32.5]} 15. Qxc2 {[%clk 0:02:24.1]}
15... Re6 {[%clk 0:02:32.2]} 16. Rfd1 {[%clk 0:02:16.6]} 16... Qc7 {[%clk
0:02:31.7]} 17. Bf4 {[%clk 0:02:09]} 17... Nh5 {[%clk 0:02:30]} 18. Bh2 {[%clk
0:02:07.5]} 18... Bc6 {[%clk 0:02:22.1]} 19. Nd5 {[%clk 0:01:59.6]} 19... Qa5
{[%clk 0:02:18.6]} 20. b4 {[%clk 0:01:49.3]} 20... Qd8 {[%clk 0:02:18.2]} 21. b5
{[%clk 0:01:34.1]} 21... Bxd5 {[%clk 0:02:13.6]} 22. exd5 {[%clk 0:01:33.1]}
22... Rxd6 {[%clk 0:02:13.3]} 23. Bxd6 {[%clk 0:01:33.1]} 23... Qxd6 {[%clk
0:02:12.7]} 24. Rac1 {[%clk 0:01:30.4]} 24... Rd8 {[%clk 0:02:11.2]} 25. Qc7
{[%clk 0:01:29.5]} 25... Qd7 {[%clk 0:01:59]} 26. Qxd7 {[%clk 0:01:17.4]} 26...
Rxd7 {[%clk 0:01:59.9]} 27. Rc8+ {[%clk 0:01:14.4]} 27... Bf8 {[%clk 0:01:59.7]}
28. Re1 {[%clk 0:01:09.2]} 28... Kg7 {[%clk 0:01:58.9]} 29. Ree8 {[%clk
0:01:06.2]} 29... Bb4 {[%clk 0:01:57.6]} 30. Red8 {[%clk 0:01:04.5]} 30... Re7
{[%clk 0:01:51.1]} 31. d6 {[%clk 0:01:00.3]} 31... Re1+ {[%clk 0:01:49.9]} 32.
Kh2 {[%clk 0:01:00.6]} 32... Rd1 {[%clk 0:01:34.3]} 33. d7 {[%clk 0:00:47.3]}
33... Kf6 {[%clk 0:01:30.5]} 34. g4 {[%clk 0:00:40.9]} 34... Nf4 {[%clk
0:01:24.8]} 35. Rc4 {[%clk 0:00:37.4]} 35... Bd6 {[%clk 0:01:21.1]} 36. Re8
{[%clk 0:00:30.2]} 36... Ne6+ {[%clk 0:01:19.7]} 37. Kg2 {[%clk 0:00:30.2]}
37... Be7 {[%clk 0:01:17.5]} 38. Ra8 {[%clk 0:00:16.3]} 38... Rxd7 {[%clk
0:01:16.1]} 39. Rxa7 {[%clk 0:00:16.6]} 39... Bd6 {[%clk 0:01:12.3]} 40. a4
{[%clk 0:00:16.7]} 40... Nf4+ {[%clk 0:01:11.6]} 41. Kf3 {[%clk 0:00:17]} 41...
Nd5 {[%clk 0:01:09.4]} 42. a5 {[%clk 0:00:15.8]} 42... Bb8 {[%clk 0:01:06.3]}
43. Ra8 {[%clk 0:00:14.9]} 43... Be5 {[%clk 0:01:05.7]} 44. a6 {[%clk
0:00:14.1]} 44... Nb6 {[%clk 0:01:05.1]} 45. axb7 {[%clk 0:00:13.3]} 45... Rxb7
{[%clk 0:01:04.8]} 46. Rc6+ {[%clk 0:00:13.4]} 46... Kg7 {[%clk 0:01:03.8]} 47.
Re8 {[%clk 0:00:11.7]} 47... Bf6 {[%clk 0:01:03.6]} 48. Ke4 {[%clk 0:00:08.6]}
48... Nd7 {[%clk 0:01:01.7]} 49. Rd6 {[%clk 0:00:06.1]} 49... Nc5+ {[%clk
0:01:00.2]} 50. Kd5 {[%clk 0:00:05.9]} 50... Rxb5 {[%clk 0:01:00.7]} 51. Kc4
{[%clk 0:00:06.3]} 51... Ra5 {[%clk 0:00:56.9]} 52. Rd5 {[%clk 0:00:06.7]} 52...
Nb7 {[%clk 0:00:44.5]} 53. Rxa5 {[%clk 0:00:06.6]} 53... Nd6+ {[%clk 0:00:44.3]}
54. Kd5 {[%clk 0:00:07.5]} 54... Nxe8 {[%clk 0:00:44.3]} 55. f4 {[%clk 0:00:07]}
55... h6 {[%clk 0:00:42.5]} 56. Ra6 {[%clk 0:00:06.2]} 56... Nc7+ {[%clk
0:00:42]} 57. Kc6 {[%clk 0:00:06.5]} 57... Nxa6 {[%clk 0:00:42.9]} 58. g5 {[%clk
0:00:06]} 58... hxg5 {[%clk 0:00:42.9]} 59. fxg5 {[%clk 0:00:06.7]} 59... Bxg5
{[%clk 0:00:43.8]} 60. h4 {[%clk 0:00:06.9]} 60... Bxh4 {[%clk 0:00:42.3]} 0-1

[Event "Late-Titled-Tuesday-Blitz-June-25-2024"]
[Site "Chess.com"]
[Date "2024.06.25"]
[Round "4"]
[White "Juliana_Figueira"]
[Black "Flawless_Fighter"]
[Result "0-1"]
[WhiteElo "1965"]
[BlackElo "2776"]
[TimeControl "180+1"]
[EndTime "14:37:35 PDT"]
[Termination "Flawless_Fighter won by resignation"]

1. d4 {[%clk 0:03:00.9]} 1... Nf6 {[%clk 0:02:57.3]} 2. c4 {[%clk 0:02:59.7]}
2... e6 {[%clk 0:02:56.7]} 3. g3 {[%clk 0:02:57.7]} 3... d5 {[%clk 0:02:57.6]}
4. Bg2 {[%clk 0:02:57.3]} 4... Be7 {[%clk 0:02:58.2]} 5. Nf3 {[%clk 0:02:54.8]}
5... O-O {[%clk 0:02:58.7]} 6. O-O {[%clk 0:02:55.1]} 6... c6 {[%clk 0:02:58.6]}
7. Qc2 {[%clk 0:02:53.3]} 7... b6 {[%clk 0:02:58.6]} 8. Nbd2 {[%clk 0:02:53.8]}
8... c5 {[%clk 0:02:58.9]} 9. e3 {[%clk 0:02:51.6]} 9... Bb7 {[%clk 0:02:58.5]}
10. Nb3 {[%clk 0:02:48.7]} 10... dxc4 {[%clk 0:02:57.5]} 11. Qxc4 {[%clk
0:02:48.8]} 11... Ba6 {[%clk 0:02:57.2]} 12. Qc2 {[%clk 0:02:41.5]} 12... Bxf1
{[%clk 0:02:55.4]} 13. Bxf1 {[%clk 0:02:40.7]} 13... Nbd7 {[%clk 0:02:55.3]} 14.
Bg2 {[%clk 0:02:40.9]} 14... Rc8 {[%clk 0:02:55.2]} 15. Bd2 {[%clk 0:02:40.6]}
15... cxd4 {[%clk 0:02:54.4]} 16. Qd3 {[%clk 0:02:40.8]} 16... Nc5 {[%clk
0:02:49]} 17. Qxd4 {[%clk 0:02:35.8]} 17... Nxb3 {[%clk 0:02:46.9]} 18. axb3
{[%clk 0:02:33.1]} 18... a5 {[%clk 0:02:39.7]} 19. Ne5 {[%clk 0:02:22.7]} 19...
Qxd4 {[%clk 0:02:37.1]} 20. exd4 {[%clk 0:02:21.4]} 20... Bd6 {[%clk 0:02:29.5]}
21. f4 {[%clk 0:02:10.2]} 21... Nd5 {[%clk 0:02:26.9]} 22. Bxd5 {[%clk
0:02:02.6]} 22... Bxe5 {[%clk 0:02:24.4]} 23. dxe5 {[%clk 0:01:53.6]} 23... exd5
{[%clk 0:02:25.3]} 24. Bc3 {[%clk 0:01:53.2]} 24... Rfd8 {[%clk 0:02:23]} 25.
Rd1 {[%clk 0:01:52.6]} 25... d4 {[%clk 0:02:20.8]} 26. Bxd4 {[%clk 0:01:36.1]}
26... Rd5 {[%clk 0:02:20.4]} 27. Kf2 {[%clk 0:01:35.7]} 27... Rcd8 {[%clk
0:02:17.3]} 28. Ke3 {[%clk 0:01:35.6]} 28... h5 {[%clk 0:02:11.4]} 29. Rd2
{[%clk 0:01:33.2]} 29... Rb5 {[%clk 0:02:08.3]} 30. Rd3 {[%clk 0:01:27.3]} 30...
Rbd5 {[%clk 0:02:01.7]} 31. Ke4 {[%clk 0:01:26.3]} 31... f5+ {[%clk 0:01:58.9]}
32. Ke3 {[%clk 0:01:20.2]} 32... Kf7 {[%clk 0:01:58.3]} 33. Rd2 {[%clk
0:01:20.3]} 33... Ke6 {[%clk 0:01:57.9]} 34. h3 {[%clk 0:01:15.9]} 34... g6
{[%clk 0:01:57.7]} 35. h4 {[%clk 0:01:13.4]} 35... R8d7 {[%clk 0:01:57.3]} 36.
Rd3 {[%clk 0:01:11]} 36... Rb5 {[%clk 0:01:57.2]} 37. Rc3 {[%clk 0:01:10.6]}
37... Kf7 {[%clk 0:01:49.9]} 38. Rd3 {[%clk 0:01:01.8]} 38... Rb4 {[%clk
0:01:48.3]} 39. Rd2 {[%clk 0:00:27.1]} 39... Rxb3+ {[%clk 0:01:47]} 40. Bc3
{[%clk 0:00:27.3]} 40... Rxd2 {[%clk 0:01:46.1]} 41. Kxd2 {[%clk 0:00:27.7]}
41... Rb5 {[%clk 0:01:42.8]} 42. Kd3 {[%clk 0:00:27.8]} 42... Ke6 {[%clk
0:01:42.1]} 43. Kd4 {[%clk 0:00:28]} 43... Rd5+ {[%clk 0:01:41.2]} 44. Kc4
{[%clk 0:00:28.3]} 44... b5+ {[%clk 0:01:41.8]} 45. Kb3 {[%clk 0:00:27.9]} 45...
b4 {[%clk 0:01:42.2]} 46. Be1 {[%clk 0:00:24.7]} 46... Rd1 {[%clk 0:00:56.6]}
47. Bf2 {[%clk 0:00:24.1]} 47... Rd3+ {[%clk 0:00:56.5]} 48. Kc4 {[%clk
0:00:20]} 48... Rd2 {[%clk 0:00:56.3]} 49. Bd4 {[%clk 0:00:16]} 49... a4 {[%clk
0:00:52.6]} 50. Bc5 {[%clk 0:00:08.5]} 50... Rxb2 {[%clk 0:00:51.9]} 51. Bxb4
{[%clk 0:00:08.6]} 51... Rg2 {[%clk 0:00:48]} 52. Be1 {[%clk 0:00:07.8]} 52...
a3 {[%clk 0:00:47]} 53. Kb3 {[%clk 0:00:07.3]} 53... a2 {[%clk 0:00:47.5]} 54.
Bc3 {[%clk 0:00:06.6]} 54... Rxg3 {[%clk 0:00:48]} 55. Kxa2 {[%clk 0:00:03.1]}
55... Rxc3 {[%clk 0:00:48.9]} 56. Kb2 {[%clk 0:00:03.4]} 56... Rf3 {[%clk
0:00:48.5]} 57. Kc2 {[%clk 0:00:03.3]} 57... Rxf4 {[%clk 0:00:49]} 58. Kd2
{[%clk 0:00:04.2]} 58... Rxh4 {[%clk 0:00:49.7]} 59. Ke3 {[%clk 0:00:04]} 59...
Re4+ {[%clk 0:00:50.4]} 60. Kf3 {[%clk 0:00:04.4]} 60... Rxe5 {[%clk 0:00:51.3]}
0-1

[Event "Late-Titled-Tuesday-Blitz-June-25-2024"]
[Site "Chess.com"]
[Date "2024.06.25"]
[Round "4"]
[White "MathiasWomacka"]
[Black "NigiriSushies"]
[Result "1-0"]
[WhiteElo "2528"]
[BlackElo "2297"]
[TimeControl "180+1"]
[EndTime "14:37:35 PDT"]
[Termination "MathiasWomacka won on time"]

1. e4 {[%clk 0:03:00.9]} 1... c5 {[%clk 0:02:57.7]} 2. Nf3 {[%clk 0:02:58.6]}
2... d6 {[%clk 0:02:57.7]} 3. d4 {[%clk 0:02:58.2]} 3... cxd4 {[%clk 0:02:58.6]}
4. Nxd4 {[%clk 0:02:58.3]} 4... Nf6 {[%clk 0:02:59.3]} 5. Nc3 {[%clk 0:02:58.3]}
5... a6 {[%clk 0:02:59.5]} 6. Be2 {[%clk 0:02:58.3]} 6... e5 {[%clk 0:02:59.3]}
7. Nb3 {[%clk 0:02:58.6]} 7... Be6 {[%clk 0:02:59.3]} 8. f4 {[%clk 0:02:57.6]}
8... Be7 {[%clk 0:02:52.6]} 9. f5 {[%clk 0:02:56.3]} 9... Bd7 {[%clk 0:02:50.8]}
10. g4 {[%clk 0:02:55.2]} 10... h6 {[%clk 0:02:49.4]} 11. g5 {[%clk 0:02:47]}
11... hxg5 {[%clk 0:02:50.3]} 12. Bxg5 {[%clk 0:02:46.5]} 12... Nc6 {[%clk
0:02:45.6]} 13. Qd2 {[%clk 0:02:36.1]} 13... b5 {[%clk 0:02:42]} 14. a3 {[%clk
0:02:33.1]} 14... Ng4 {[%clk 0:01:15.3]} 15. Bxe7 {[%clk 0:02:22.6]} 15... Qxe7
{[%clk 0:01:11.2]} 16. Bxg4 {[%clk 0:01:53.6]} 16... Qh4+ {[%clk 0:01:04.9]} 17.
Qf2 {[%clk 0:01:54.1]} 17... Qxg4 {[%clk 0:01:01.6]} 18. Rg1 {[%clk 0:01:54.1]}
18... Qh5 {[%clk 0:00:48.2]} 19. Nd5 {[%clk 0:01:43.9]} 19... Kf8 {[%clk
0:00:19.8]} 20. Qg3 {[%clk 0:01:21.9]} 20... Qh4 {[%clk 0:00:18.1]} 21. O-O-O
{[%clk 0:01:10]} 21... Qxg3 {[%clk 0:00:16.2]} 22. Rxg3 {[%clk 0:01:08.9]} 22...
Rxh2 {[%clk 0:00:14.4]} 23. Nb6 {[%clk 0:01:02]} 23... Rd8 {[%clk 0:00:14.1]}
24. Rxd6 {[%clk 0:01:01.3]} 24... Be8 {[%clk 0:00:14.1]} 25. Rxd8 {[%clk
0:00:57.1]} 25... Nxd8 {[%clk 0:00:14.3]} 26. Nc5 {[%clk 0:00:52.2]} 26... Nc6
{[%clk 0:00:13.9]} 27. c3 {[%clk 0:00:37.7]} 27... a5 {[%clk 0:00:12.8]} 28. Nc8
{[%clk 0:00:23.4]} 28... b4 {[%clk 0:00:12]} 29. Nd6 {[%clk 0:00:22.6]} 29...
bxc3 {[%clk 0:00:10.9]} 30. bxc3 {[%clk 0:00:21.9]} 30... Ra2 {[%clk 0:00:05.2]}
31. a4 {[%clk 0:00:17.3]} 31... Ra1+ {[%clk 0:00:04.1]} 32. Kb2 {[%clk
0:00:17.3]} 32... Re1 {[%clk 0:00:04.2]} 33. Nxe8 {[%clk 0:00:16]} 33... Kxe8
{[%clk 0:00:05.1]} 34. Rxg7 {[%clk 0:00:15.9]} 34... Nd8 {[%clk 0:00:05.5]} 35.
Rg8+ {[%clk 0:00:14.8]} 35... Ke7 {[%clk 0:00:05.5]} 36. f6+ {[%clk 0:00:15.3]}
36... Kxf6 {[%clk 0:00:05]} 37. Rxd8 {[%clk 0:00:15.9]} 37... Kg5 {[%clk
0:00:05.4]} 38. Rd5 {[%clk 0:00:14]} 38... Kf4 {[%clk 0:00:03.4]} 39. Nd3+
{[%clk 0:00:12.9]} 39... Kxe4 {[%clk 0:00:02.5]} 40. Rxe5+ {[%clk 0:00:13.1]}
40... Kxd3 {[%clk 0:00:01.9]} 41. Rxe1 {[%clk 0:00:14]} 41... f6 {[%clk
0:00:02.4]} 42. Rf1 {[%clk 0:00:13.8]} 1-0

[Event "Late-Titled-Tuesday-Blitz-June-25-2024"]
[Site "Chess.com"]
[Date "2024.06.25"]
[Round "4"]
[White "K_A_S_T_O_R"]
[Black "Njal28"]
[Result "0-1"]
[WhiteElo "2858"]
[BlackElo "3107"]
[TimeControl "180+1"]
[EndTime "14:37:37 PDT"]
[Termination "Njal28 won by resignation"]

1. e4 {[%clk 0:02:56.2]} 1... e5 {[%clk 0:03:00.3]} 2. Nf3 {[%clk 0:02:55.8]}
2... Nc6 {[%clk 0:03:00.9]} 3. Bb5 {[%clk 0:02:55.8]} 3... a6 {[%clk 0:03:01.4]}
4. Ba4 {[%clk 0:02:56]} 4... d6 {[%clk 0:03:02]} 5. O-O {[%clk 0:02:48]} 5...
Bg4 {[%clk 0:03:02.4]} 6. h3 {[%clk 0:02:46.3]} 6... h5 {[%clk 0:03:02.6]} 7.
Bxc6+ {[%clk 0:02:44.8]} 7... bxc6 {[%clk 0:03:02.8]} 8. d3 {[%clk 0:02:45.2]}
8... Qf6 {[%clk 0:03:01.7]} 9. Be3 {[%clk 0:02:42.2]} 9... Ne7 {[%clk
0:02:50.8]} 10. Nbd2 {[%clk 0:02:38.7]} 10... Qg6 {[%clk 0:02:01.4]} 11. Nh4
{[%clk 0:02:15.1]} 11... Bxd1 {[%clk 0:01:47]} 12. Nxg6 {[%clk 0:02:14.5]} 12...
Nxg6 {[%clk 0:01:47.5]} 13. Rfxd1 {[%clk 0:02:12.6]} 13... c5 {[%clk 0:01:40.5]}
14. a3 {[%clk 0:02:07.8]} 14... a5 {[%clk 0:01:33.1]} 15. b4 {[%clk 0:01:56.6]}
15... axb4 {[%clk 0:01:32.5]} 16. axb4 {[%clk 0:01:57]} 16... Rxa1 {[%clk
0:01:33.4]} 17. Rxa1 {[%clk 0:01:57.4]} 17... cxb4 {[%clk 0:01:34.3]} 18. Ra7
{[%clk 0:01:49]} 18... c5 {[%clk 0:01:23.2]} 19. Nc4 {[%clk 0:01:46.5]} 19...
Be7 {[%clk 0:01:19.7]} 20. Nb6 {[%clk 0:01:42.5]} 20... O-O {[%clk 0:01:14.3]}
21. Nd5 {[%clk 0:01:42.1]} 21... Re8 {[%clk 0:01:11.9]} 22. g3 {[%clk 0:01:23]}
22... h4 {[%clk 0:01:08.7]} 23. Kg2 {[%clk 0:01:20.6]} 23... Bf8 {[%clk
0:01:06.7]} 24. f4 {[%clk 0:01:10.3]} 24... hxg3 {[%clk 0:01:01.5]} 25. f5
{[%clk 0:01:10.1]} 25... Ne7 {[%clk 0:01:02]} 26. Nc7 {[%clk 0:01:07.1]} 26...
Rc8 {[%clk 0:00:59.2]} 27. Kxg3 {[%clk 0:01:04.2]} 27... Nc6 {[%clk 0:00:45.2]}
28. Rb7 {[%clk 0:01:02.7]} 28... c4 {[%clk 0:00:34.4]} 29. Nd5 {[%clk
0:00:42.8]} 29... b3 {[%clk 0:00:34.7]} 30. dxc4 {[%clk 0:00:35.8]} 30... bxc2
{[%clk 0:00:34.6]} 31. Rb2 {[%clk 0:00:32.7]} 31... Nd4 {[%clk 0:00:34.3]} 32.
Nb6 {[%clk 0:00:19.6]} 32... Rc6 {[%clk 0:00:22.1]} 33. Kf2 {[%clk 0:00:18.6]}
33... g6 {[%clk 0:00:21]} 34. f6 {[%clk 0:00:18.3]} 34... Kh7 {[%clk 0:00:20.5]}
35. Ke1 {[%clk 0:00:16.1]} 35... Bh6 {[%clk 0:00:20.6]} 36. Bxh6 {[%clk
0:00:16.3]} 36... Kxh6 {[%clk 0:00:21.5]} 37. Kd2 {[%clk 0:00:16.9]} 37... Kg5
{[%clk 0:00:20.6]} 38. Rb4 {[%clk 0:00:12.1]} 38... Kxf6 {[%clk 0:00:15.3]} 39.
Nd5+ {[%clk 0:00:12.3]} 39... Kg5 {[%clk 0:00:15.8]} 40. Ne3 {[%clk 0:00:12.9]}
40... Ra6 {[%clk 0:00:13.5]} 41. Rb2 {[%clk 0:00:11.2]} 41... Kf4 {[%clk
0:00:11.6]} 42. Nxc2 {[%clk 0:00:10.9]} 42... Nxc2 {[%clk 0:00:11.9]} 43. Kxc2
{[%clk 0:00:09.1]} 43... Kxe4 {[%clk 0:00:12]} 44. Kc3 {[%clk 0:00:10]} 44... f5
{[%clk 0:00:09.9]} 45. Rd2 {[%clk 0:00:07.6]} 45... f4 {[%clk 0:00:09.8]} 0-1

[Event "Late-Titled-Tuesday-Blitz-June-25-2024"]
[Site "Chess.com"]
[Date "2024.06.25"]
[Round "4"]
[White "Pitomina"]
[Black "KNVB"]
[Result "1-0"]
[WhiteElo "2541"]
[BlackElo "2689"]
[TimeControl "180+1"]
[EndTime "14:37:37 PDT"]
[Termination "Pitomina won by resignation"]

1. d4 {[%clk 0:03:00.9]} 1... e5 {[%clk 0:02:52.4]} 2. dxe5 {[%clk 0:02:59.9]}
2... Nc6 {[%clk 0:02:52.2]} 3. Nf3 {[%clk 0:02:59.5]} 3... Qe7 {[%clk
0:02:52.7]} 4. Bf4 {[%clk 0:02:58.1]} 4... Qb4+ {[%clk 0:02:53.1]} 5. Bd2 {[%clk
0:02:57.5]} 5... Qxb2 {[%clk 0:02:53.8]} 6. Nc3 {[%clk 0:02:57.5]} 6... Bb4
{[%clk 0:02:54.5]} 7. Rb1 {[%clk 0:02:55.5]} 7... Qxc3 {[%clk 0:02:55.1]} 8.
Bxc3 {[%clk 0:02:41.4]} 8... Bxc3+ {[%clk 0:02:56]} 9. Nd2 {[%clk 0:02:41.7]}
9... Nxe5 {[%clk 0:02:56.7]} 10. e3 {[%clk 0:02:39.6]} 10... Nf6 {[%clk
0:02:57.2]} 11. Bd3 {[%clk 0:02:35.9]} 11... d5 {[%clk 0:02:57.9]} 12. O-O
{[%clk 0:02:35]} 12... O-O {[%clk 0:02:58.6]} 13. Nf3 {[%clk 0:02:29.8]} 13...
Nxf3+ {[%clk 0:02:58.8]} 14. Qxf3 {[%clk 0:02:28.7]} 14... Be5 {[%clk
0:02:59.2]} 15. h3 {[%clk 0:02:26.7]} 15... b6 {[%clk 0:02:59.8]} 16. c4 {[%clk
0:02:09.4]} 16... Be6 {[%clk 0:03:00.4]} 17. Rfc1 {[%clk 0:02:07.2]} 17... Rae8
{[%clk 0:02:42.2]} 18. Bf5 {[%clk 0:02:05.8]} 18... Bxf5 {[%clk 0:02:03.3]} 19.
Qxf5 {[%clk 0:02:06.7]} 19... Bd6 {[%clk 0:01:57.7]} 20. cxd5 {[%clk 0:01:48.1]}
20... Re5 {[%clk 0:01:57.8]} 21. Qc2 {[%clk 0:01:47.5]} 21... Rxd5 {[%clk
0:01:53]} 22. Rd1 {[%clk 0:01:47.7]} 22... Rc5 {[%clk 0:01:48.6]} 23. Qa4 {[%clk
0:01:47.1]} 23... Ra5 {[%clk 0:01:49]} 24. Qb3 {[%clk 0:01:44.2]} 24... Ne4
{[%clk 0:01:45.1]} 25. Rd4 {[%clk 0:01:44]} 25... Re8 {[%clk 0:01:40.5]} 26.
Rbd1 {[%clk 0:01:39.6]} 26... Rae5 {[%clk 0:01:37.9]} 27. Rd5 {[%clk 0:01:37.2]}
27... R5e6 {[%clk 0:01:35.1]} 28. Qc2 {[%clk 0:01:28.7]} 28... Nc5 {[%clk
0:01:17.8]} 29. g3 {[%clk 0:01:20.8]} 29... g6 {[%clk 0:01:16.1]} 30. Kg2 {[%clk
0:01:21]} 30... Be7 {[%clk 0:00:57]} 31. h4 {[%clk 0:01:18.3]} 31... h5 {[%clk
0:00:56.7]} 32. Qe2 {[%clk 0:01:07.7]} 32... Kg7 {[%clk 0:00:22.5]} 33. Qb5
{[%clk 0:01:04.4]} 33... Bd6 {[%clk 0:00:21.3]} 34. Qb2+ {[%clk 0:00:59.5]}
34... Kg8 {[%clk 0:00:18.8]} 35. R1d3 {[%clk 0:00:57.4]} 35... Nxd3 {[%clk
0:00:18]} 36. Rxd3 {[%clk 0:00:58.3]} 36... Re5 {[%clk 0:00:07.4]} 37. Qc2
{[%clk 0:00:56.6]} 37... Rc5 {[%clk 0:00:04.7]} 38. Qe2 {[%clk 0:00:56.8]} 38...
Ra5 {[%clk 0:00:02.9]} 39. Rd2 {[%clk 0:00:56.2]} 39... Re6 {[%clk 0:00:02.6]}
40. Qf3 {[%clk 0:00:56.3]} 40... Kg7 {[%clk 0:00:02.7]} 41. Qb7 {[%clk
0:00:56.1]} 41... Re7 {[%clk 0:00:01.4]} 42. Rxd6 {[%clk 0:00:55.1]} 42... cxd6
{[%clk 0:00:01.8]} 43. Qxe7 {[%clk 0:00:55.3]} 43... Rxa2 {[%clk 0:00:02.7]} 44.
Qxd6 {[%clk 0:00:54.8]} 44... Ra5 {[%clk 0:00:03.6]} 45. Qd4+ {[%clk 0:00:54.3]}
45... Kg8 {[%clk 0:00:04.1]} 46. e4 {[%clk 0:00:54.8]} 46... Rc5 {[%clk
0:00:02]} 47. e5 {[%clk 0:00:54.8]} 47... Rc6 {[%clk 0:00:01.5]} 48. Qd7 {[%clk
0:00:50.6]} 48... Re6 {[%clk 0:00:01.5]} 49. Qxa7 {[%clk 0:00:50.3]} 49... Kg7
{[%clk 0:00:01.2]} 50. Qc7 {[%clk 0:00:50.1]} 50... b5 {[%clk 0:00:01.1]} 51.
Qb8 {[%clk 0:00:50.4]} 51... b4 {[%clk 0:00:01]} 52. Qxb4 {[%clk 0:00:50.6]}
52... Rxe5 {[%clk 0:00:01.7]} 53. Qd4 {[%clk 0:00:50.8]} 53... f6 {[%clk
0:00:02.5]} 54. Qd7+ {[%clk 0:00:50.9]} 54... Kg8 {[%clk 0:00:03]} 55. Kf3
{[%clk 0:00:50.1]} 55... Rf5+ {[%clk 0:00:02.9]} 56. Qxf5 {[%clk 0:00:49.4]}
56... gxf5 {[%clk 0:00:03.1]} 57. Kf4 {[%clk 0:00:50.3]} 57... Kg7 {[%clk
0:00:03.8]} 58. Kxf5 {[%clk 0:00:51.2]} 58... Kf7 {[%clk 0:00:04]} 59. f3 {[%clk
0:00:51.4]} 59... Kg7 {[%clk 0:00:03.4]} 60. Ke6 {[%clk 0:00:49.6]} 60... Kg6
{[%clk 0:00:03.8]} 61. f4 {[%clk 0:00:49.8]} 61... Kg7 {[%clk 0:00:03.3]} 62. f5
{[%clk 0:00:50.2]} 62... Kh7 {[%clk 0:00:02.7]} 63. Kxf6 {[%clk 0:00:50.4]}
63... Kh6 {[%clk 0:00:03.6]} 64. Ke7 {[%clk 0:00:49.3]} 64... Kg7 {[%clk
0:00:04]} 65. f6+ {[%clk 0:00:49.7]} 65... Kg6 {[%clk 0:00:04.9]} 66. f7 {[%clk
0:00:50.1]} 66... Kf5 {[%clk 0:00:05.8]} 67. f8=Q+ {[%clk 0:00:50.1]} 67... Kg4
{[%clk 0:00:06.7]} 68. Qf4+ {[%clk 0:00:50.3]} 68... Kh3 {[%clk 0:00:07.6]} 1-0